[Event "*** Titled Tuesday Blitz"]
[Site "Chess.com"]
[Date "2020.11.03"]
[Round "1"]
[White "Mr_Sinigami"]
[Black "MoreChessJulia"]
[Result "0-1"]
[WhiteElo "2481"]
[BlackElo "2072"]
[TimeControl "180+1"]
[EndTime "10:07:38 PST"]
[Termination "MoreChessJulia won on time"]

1. e4 {[%clk 0:03:00]} 1... g6 {[%clk 0:02:59.5]} 2. d4 {[%clk 0:02:59.2]} 2...
Bg7 {[%clk 0:02:59.5]} 3. Nc3 {[%clk 0:02:59.6]} 3... c5 {[%clk 0:02:57.7]} 4.
d5 {[%clk 0:02:56.7]} 4... d6 {[%clk 0:02:56.7]} 5. Nf3 {[%clk 0:02:55.6]} 5...
Bg4 {[%clk 0:02:54.5]} 6. Be2 {[%clk 0:02:55]} 6... Nd7 {[%clk 0:02:52]} 7. Nd2
{[%clk 0:02:53.6]} 7... Bxe2 {[%clk 0:02:50.8]} 8. Qxe2 {[%clk 0:02:54.5]} 8...
a6 {[%clk 0:02:49.8]} 9. a4 {[%clk 0:02:54]} 9... Ngf6 {[%clk 0:02:45.5]} 10.
O-O {[%clk 0:02:52.9]} 10... h5 {[%clk 0:02:42.4]} 11. Nc4 {[%clk 0:02:52]}
11... b6 {[%clk 0:02:34.3]} 12. e5 {[%clk 0:02:42.5]} 12... dxe5 {[%clk
0:02:33.8]} 13. Nxe5 {[%clk 0:02:42.3]} 13... Nxe5 {[%clk 0:02:31.9]} 14. Qxe5
{[%clk 0:02:41.8]} 14... O-O {[%clk 0:02:31.1]} 15. Re1 {[%clk 0:02:41.7]} 15...
Re8 {[%clk 0:02:26.8]} 16. Bf4 {[%clk 0:02:07.2]} 16... Qd7 {[%clk 0:02:21.2]}
17. Rad1 {[%clk 0:02:04.5]} 17... b5 {[%clk 0:02:18.8]} 18. axb5 {[%clk
0:02:02.2]} 18... axb5 {[%clk 0:02:14.3]} 19. Bc1 {[%clk 0:01:49.2]} 19... b4
{[%clk 0:02:13.2]} 20. Ne4 {[%clk 0:01:48.4]} 20... Rac8 {[%clk 0:02:02.9]} 21.
Qg5 {[%clk 0:01:36.7]} 21... c4 {[%clk 0:01:55.8]} 22. Ng3 {[%clk 0:01:24.6]}
22... Rc5 {[%clk 0:01:49.5]} 23. Qf4 {[%clk 0:00:58.8]} 23... Nxd5 {[%clk
0:01:40.4]} 24. Qf3 {[%clk 0:00:58.5]} 24... e6 {[%clk 0:01:39.3]} 25. Ne4
{[%clk 0:00:55.9]} 25... Rc6 {[%clk 0:01:35.5]} 26. Bg5 {[%clk 0:00:52.6]} 26...
Bxb2 {[%clk 0:01:28.6]} 27. Bf6 {[%clk 0:00:49.2]} 27... Ba3 {[%clk 0:01:12.3]}
28. Be5 {[%clk 0:00:45.1]} 28... Qe7 {[%clk 0:01:05.5]} 29. Rxd5 {[%clk
0:00:40.4]} 29... exd5 {[%clk 0:01:04.4]} 30. Ng3 {[%clk 0:00:27.4]} 30... Re6
{[%clk 0:00:54.1]} 31. Nxh5 {[%clk 0:00:11.4]} 31... gxh5 {[%clk 0:00:44.1]} 32.
Qg3+ {[%clk 0:00:11]} 32... Rg6 {[%clk 0:00:43.4]} 33. Qf3 {[%clk 0:00:09.1]}
33... Bb2 {[%clk 0:00:38]} 34. Qxh5 {[%clk 0:00:04.8]} 34... Bxe5 {[%clk
0:00:36.2]} 35. g3 {[%clk 0:00:05.1]} 35... Qf6 {[%clk 0:00:28.2]} 36. Kg2
{[%clk 0:00:04.8]} 36... Re6 {[%clk 0:00:17.3]} 37. Qh3 {[%clk 0:00:03.4]} 37...
Qh8 {[%clk 0:00:16.5]} 38. Qf5 {[%clk 0:00:02.8]} 38... Rgf6 {[%clk 0:00:14.6]}
39. Qg5+ {[%clk 0:00:01.9]} 39... Qg7 {[%clk 0:00:14.7]} 40. Qh5 {[%clk
0:00:02]} 40... Qg6 {[%clk 0:00:14.2]} 0-1

[Event "*** Titled Tuesday Blitz"]
[Site "Chess.com"]
[Date "2020.11.03"]
[Round "1"]
[White "Qvalda"]
[Black "Igor_Lysyj"]
[Result "0-1"]
[WhiteElo "2404"]
[BlackElo "2811"]
[TimeControl "180+1"]
[EndTime "10:07:40 PST"]
[Termination "Igor_Lysyj won by resignation"]

1. e4 {[%clk 0:02:40]} 1... e5 {[%clk 0:02:59.2]} 2. Nf3 {[%clk 0:02:39.4]} 2...
Nc6 {[%clk 0:02:59.1]} 3. Nc3 {[%clk 0:02:39.8]} 3... Nf6 {[%clk 0:02:58.3]} 4.
d4 {[%clk 0:02:39.9]} 4... exd4 {[%clk 0:02:57.3]} 5. Nxd4 {[%clk 0:02:40.8]}
5... Bc5 {[%clk 0:02:57.2]} 6. Nxc6 {[%clk 0:02:40]} 6... bxc6 {[%clk
0:02:54.5]} 7. Bd3 {[%clk 0:02:39]} 7... O-O {[%clk 0:02:53.1]} 8. O-O {[%clk
0:02:38.4]} 8... d5 {[%clk 0:02:51.6]} 9. Bg5 {[%clk 0:02:32.3]} 9... h6 {[%clk
0:02:48.7]} 10. Bxf6 {[%clk 0:02:15.8]} 10... Qxf6 {[%clk 0:02:47.2]} 11. exd5
{[%clk 0:02:16.7]} 11... cxd5 {[%clk 0:02:25.8]} 12. Nxd5 {[%clk 0:02:17.6]}
12... Qd6 {[%clk 0:02:24.3]} 13. Nc3 {[%clk 0:02:09.1]} 13... Bb4 {[%clk
0:02:02.9]} 14. Ne4 {[%clk 0:02:05.1]} 14... Qe5 {[%clk 0:01:58.5]} 15. c3
{[%clk 0:02:01.2]} 15... Ba5 {[%clk 0:01:58.2]} 16. Qc2 {[%clk 0:02:00.7]} 16...
Bb7 {[%clk 0:01:54.5]} 17. Ng3 {[%clk 0:01:58.2]} 17... Rad8 {[%clk 0:01:49.6]}
18. Rae1 {[%clk 0:01:57.2]} 18... Qf4 {[%clk 0:01:45.1]} 19. b4 {[%clk
0:01:20.9]} 19... Bb6 {[%clk 0:01:43.4]} 20. c4 {[%clk 0:01:18.5]} 20... c5
{[%clk 0:01:34.6]} 21. Be4 {[%clk 0:01:14.1]} 21... Bc8 {[%clk 0:01:29.4]} 22.
b5 {[%clk 0:01:08.9]} 22... Rd2 {[%clk 0:01:23.1]} 23. Qb1 {[%clk 0:01:01.1]}
23... Be6 {[%clk 0:01:18.4]} 24. Bd5 {[%clk 0:00:36.4]} 24... Bxd5 {[%clk
0:01:16.2]} 25. cxd5 {[%clk 0:00:37.3]} 25... c4 {[%clk 0:01:02.5]} 26. Ne4
{[%clk 0:00:33.4]} 26... Rxd5 {[%clk 0:01:00.4]} 27. Qc1 {[%clk 0:00:26.9]}
27... Qc7 {[%clk 0:00:55.5]} 28. a4 {[%clk 0:00:25.3]} 28... Rfd8 {[%clk
0:00:52.7]} 29. Nc3 {[%clk 0:00:24.9]} 29... Rd2 {[%clk 0:00:50.5]} 30. Re2
{[%clk 0:00:25.3]} 30... Rxe2 {[%clk 0:00:47.9]} 31. Nxe2 {[%clk 0:00:26.2]}
31... Qe5 {[%clk 0:00:47.4]} 32. Qxc4 {[%clk 0:00:23.5]} 32... Rd2 {[%clk
0:00:43.5]} 33. Ng3 {[%clk 0:00:18.8]} 33... Rxf2 {[%clk 0:00:40.1]} 34. Rxf2
{[%clk 0:00:16]} 34... Qe1+ {[%clk 0:00:39.5]} 35. Qf1 {[%clk 0:00:09.5]} 35...
Bxf2+ {[%clk 0:00:38.5]} 36. Kh1 {[%clk 0:00:10.1]} 36... Bxg3 {[%clk
0:00:38.4]} 37. Qxe1 {[%clk 0:00:10.5]} 37... Bxe1 {[%clk 0:00:38]} 38. Kg1
{[%clk 0:00:10]} 38... Kf8 {[%clk 0:00:36.6]} 39. Kf1 {[%clk 0:00:10.4]} 39...
Ba5 {[%clk 0:00:35.5]} 40. Ke2 {[%clk 0:00:10.8]} 40... Ke7 {[%clk 0:00:35.6]}
41. Kd3 {[%clk 0:00:11.5]} 41... Kd6 {[%clk 0:00:34]} 42. Kc4 {[%clk 0:00:12.4]}
42... f5 {[%clk 0:00:32.1]} 43. Kd4 {[%clk 0:00:12.7]} 43... g5 {[%clk
0:00:30.5]} 44. Kc4 {[%clk 0:00:09]} 44... h5 {[%clk 0:00:28.3]} 45. Kd4 {[%clk
0:00:09.3]} 45... g4 {[%clk 0:00:26.8]} 46. g3 {[%clk 0:00:08.5]} 46... Bb6+
{[%clk 0:00:24.7]} 47. Kc4 {[%clk 0:00:08.7]} 47... Ke5 {[%clk 0:00:23.4]} 48.
a5 {[%clk 0:00:08.7]} 48... Bxa5 {[%clk 0:00:22.2]} 49. Kc5 {[%clk 0:00:08.7]}
49... Bb6+ {[%clk 0:00:22]} 50. Kc6 {[%clk 0:00:07.9]} 50... f4 {[%clk
0:00:21.9]} 0-1

[Event "*** Titled Tuesday Blitz"]
[Site "Chess.com"]
[Date "2020.11.03"]
[Round "1"]
[White "davidkalashian"]
[Black "Smile2005"]
[Result "1-0"]
[WhiteElo "2590"]
[BlackElo "2278"]
[TimeControl "180+1"]
[EndTime "10:07:45 PST"]
[Termination "davidkalashian won by resignation"]

1. d4 {[%clk 0:02:26.5]} 1... Nf6 {[%clk 0:02:59]} 2. c4 {[%clk 0:02:25.5]} 2...
g6 {[%clk 0:02:59.9]} 3. Nc3 {[%clk 0:02:24.5]} 3... Bg7 {[%clk 0:03:00.7]} 4.
e4 {[%clk 0:02:23.2]} 4... O-O {[%clk 0:03:01.6]} 5. Be2 {[%clk 0:02:23.1]} 5...
d6 {[%clk 0:03:02]} 6. Bg5 {[%clk 0:02:21.1]} 6... h6 {[%clk 0:03:01.8]} 7. Be3
{[%clk 0:02:19.8]} 7... e5 {[%clk 0:03:01.6]} 8. d5 {[%clk 0:02:19.4]} 8... c6
{[%clk 0:03:01.9]} 9. Qd2 {[%clk 0:02:18.4]} 9... Kh7 {[%clk 0:03:01.6]} 10. f3
{[%clk 0:02:16.1]} 10... cxd5 {[%clk 0:03:01.7]} 11. cxd5 {[%clk 0:02:16.1]}
11... a5 {[%clk 0:03:02.1]} 12. g4 {[%clk 0:02:14.4]} 12... Na6 {[%clk
0:02:57.9]} 13. h4 {[%clk 0:02:10.8]} 13... Nd7 {[%clk 0:02:57.1]} 14. h5 {[%clk
0:02:09]} 14... g5 {[%clk 0:02:57.4]} 15. Nh3 {[%clk 0:02:08.1]} 15... Ndc5
{[%clk 0:02:56.8]} 16. Nf2 {[%clk 0:02:05.9]} 16... Bd7 {[%clk 0:02:56.8]} 17.
Nd3 {[%clk 0:02:00.9]} 17... a4 {[%clk 0:02:56.2]} 18. Nxc5 {[%clk 0:01:59.7]}
18... Nxc5 {[%clk 0:02:52.8]} 19. Bxc5 {[%clk 0:01:47.8]} 19... dxc5 {[%clk
0:02:53.7]} 20. Bb5 {[%clk 0:01:48]} 20... a3 {[%clk 0:02:25]} 21. b3 {[%clk
0:01:44.3]} 21... Bc8 {[%clk 0:02:22.5]} 22. Nd1 {[%clk 0:01:37.1]} 22... Qb6
{[%clk 0:02:21.6]} 23. Be2 {[%clk 0:01:22.8]} 23... Rd8 {[%clk 0:02:18.3]} 24.
Ne3 {[%clk 0:01:22]} 24... Bf8 {[%clk 0:02:15.4]} 25. Rc1 {[%clk 0:01:20.6]}
25... Qc7 {[%clk 0:02:10.4]} 26. Kf2 {[%clk 0:01:10.9]} 26... Bd6 {[%clk
0:02:09.6]} 27. Kg2 {[%clk 0:01:10.2]} 27... Qe7 {[%clk 0:02:05.5]} 28. Rc2
{[%clk 0:01:06]} 28... b6 {[%clk 0:02:05.7]} 29. Rhc1 {[%clk 0:01:04.8]} 29...
Bd7 {[%clk 0:02:05.7]} 30. Bd3 {[%clk 0:01:02.1]} 30... Qf6 {[%clk 0:02:05]} 31.
Qe2 {[%clk 0:01:01.5]} 31... Kg7 {[%clk 0:02:01.5]} 32. Bb5 {[%clk 0:01:00.5]}
32... Bc8 {[%clk 0:02:01]} 33. Nc4 {[%clk 0:00:57.8]} 33... Qf4 {[%clk
0:02:00.7]} 34. Qe3 {[%clk 0:00:54.2]} 34... Qxe3 {[%clk 0:01:41.3]} 35. Nxe3
{[%clk 0:00:55.1]} 35... Ra5 {[%clk 0:01:40]} 36. Be2 {[%clk 0:00:45.7]} 36...
b5 {[%clk 0:01:30.6]} 37. b4 {[%clk 0:00:45.2]} 37... cxb4 {[%clk 0:01:29.7]}
38. Rxc8 {[%clk 0:00:43.5]} 38... Rxc8 {[%clk 0:01:29.3]} 39. Rxc8 {[%clk
0:00:44.3]} 39... b3 {[%clk 0:01:29.6]} 40. Rc1 {[%clk 0:00:28.1]} 40... b2
{[%clk 0:01:27.1]} 41. Rd1 {[%clk 0:00:22.7]} 41... Bc5 {[%clk 0:01:23.3]} 42.
Nf5+ {[%clk 0:00:17.7]} 42... Kf6 {[%clk 0:01:22.4]} 43. d6 {[%clk 0:00:18.6]}
43... Ra6 {[%clk 0:01:12.1]} 44. d7 {[%clk 0:00:17.9]} 44... Bb6 {[%clk
0:01:12.3]} 45. Bxb5 {[%clk 0:00:15.8]} 45... Ra5 {[%clk 0:01:11.5]} 46. Bd3
{[%clk 0:00:14.2]} 46... Bd8 {[%clk 0:01:09.3]} 47. Bb1 {[%clk 0:00:12.4]} 47...
Rc5 {[%clk 0:01:09.4]} 48. Kf2 {[%clk 0:00:12.5]} 48... Ke6 {[%clk 0:01:03.6]}
49. Ke2 {[%clk 0:00:12.8]} 49... Rc1 {[%clk 0:00:59.1]} 50. Ne3 {[%clk
0:00:13.1]} 50... Rxd1 {[%clk 0:00:58.2]} 51. Kxd1 {[%clk 0:00:12.5]} 51... Kxd7
{[%clk 0:00:58.6]} 52. Nc4 {[%clk 0:00:12.8]} 52... Be7 {[%clk 0:00:58.3]} 53.
Kc2 {[%clk 0:00:13.7]} 53... Ke6 {[%clk 0:00:58.3]} 54. Kb3 {[%clk 0:00:14.6]}
54... f5 {[%clk 0:00:58.4]} 55. exf5+ {[%clk 0:00:14]} 55... Kf6 {[%clk
0:00:58.8]} 56. Nxa3 {[%clk 0:00:14.6]} 56... Bxa3 {[%clk 0:00:58.6]} 57. Kxa3
{[%clk 0:00:14.6]} 57... e4 {[%clk 0:00:59.5]} 58. Bxe4 {[%clk 0:00:14.5]} 58...
b1=N+ {[%clk 0:00:55.8]} 59. Bxb1 {[%clk 0:00:13]} 1-0

[Event "*** Titled Tuesday Blitz"]
[Site "Chess.com"]
[Date "2020.11.03"]
[Round "1"]
[White "AndrewMcStone"]
[Black "vanyakuba"]
[Result "0-1"]
[WhiteElo "2119"]
[BlackElo "2516"]
[TimeControl "180+1"]
[EndTime "10:07:45 PST"]
[Termination "vanyakuba won on time"]

1. d4 {[%clk 0:02:58.7]} 1... d5 {[%clk 0:03:00.1]} 2. c4 {[%clk 0:02:58.8]}
2... e6 {[%clk 0:03:00.2]} 3. Nc3 {[%clk 0:02:58.8]} 3... c5 {[%clk 0:03:00.3]}
4. cxd5 {[%clk 0:02:56.6]} 4... cxd4 {[%clk 0:03:00.1]} 5. Qa4+ {[%clk
0:02:55.5]} 5... Bd7 {[%clk 0:03:00.1]} 6. Qxd4 {[%clk 0:02:55.3]} 6... exd5
{[%clk 0:02:59.3]} 7. Qxd5 {[%clk 0:02:55.9]} 7... Nc6 {[%clk 0:02:53.3]} 8. Qd1
{[%clk 0:02:55.4]} 8... Nf6 {[%clk 0:02:53.2]} 9. Nf3 {[%clk 0:02:55.9]} 9...
Bc5 {[%clk 0:02:53.2]} 10. e3 {[%clk 0:02:55.8]} 10... Qe7 {[%clk 0:02:53.5]}
11. Be2 {[%clk 0:02:54.9]} 11... O-O-O {[%clk 0:02:53.5]} 12. O-O {[%clk
0:02:54.5]} 12... g5 {[%clk 0:02:52.8]} 13. b4 {[%clk 0:02:54.2]} 13... Bxb4
{[%clk 0:02:51.9]} 14. Qc2 {[%clk 0:02:39.2]} 14... Kb8 {[%clk 0:02:24.8]} 15.
Rb1 {[%clk 0:02:30.5]} 15... g4 {[%clk 0:02:15.4]} 16. Ne1 {[%clk 0:01:17.6]}
16... h5 {[%clk 0:01:31.1]} 17. Nb5 {[%clk 0:01:00.9]} 17... h4 {[%clk
0:01:12.6]} 18. Rxb4 {[%clk 0:00:42.8]} 18... Nxb4 {[%clk 0:00:41.7]} 19. Qc7+
{[%clk 0:00:42.4]} 19... Ka8 {[%clk 0:00:42]} 20. Nd6 {[%clk 0:00:42.5]} 20...
Rb8 {[%clk 0:00:33.3]} 21. Ba3 {[%clk 0:00:19.7]} 21... Nfd5 {[%clk 0:00:31.4]}
22. Qc5 {[%clk 0:00:13]} 22... Rhc8 {[%clk 0:00:28.4]} 23. Qa5 {[%clk
0:00:05.8]} 23... Qxd6 {[%clk 0:00:27.4]} 24. Nd3 {[%clk 0:00:05.7]} 24... b6
{[%clk 0:00:07]} 25. Bxb4 {[%clk 0:00:04.2]} 25... Nxb4 {[%clk 0:00:06.6]} 26.
Qxb4 {[%clk 0:00:04.3]} 26... Qxb4 {[%clk 0:00:06.9]} 27. Nxb4 {[%clk
0:00:05.2]} 27... Be6 {[%clk 0:00:06.5]} 28. Na6 {[%clk 0:00:03.4]} 28... Rb7
{[%clk 0:00:06.9]} 29. h3 {[%clk 0:00:03.5]} 29... f5 {[%clk 0:00:05.9]} 30.
hxg4 {[%clk 0:00:03.8]} 30... fxg4 {[%clk 0:00:06.8]} 31. f3 {[%clk 0:00:04.3]}
31... g3 {[%clk 0:00:06.9]} 32. f4 {[%clk 0:00:04.6]} 32... b5 {[%clk
0:00:06.8]} 33. Bf3 {[%clk 0:00:04.5]} 33... Rd8 {[%clk 0:00:06.8]} 34. Nc5
{[%clk 0:00:04.4]} 34... Bc8 {[%clk 0:00:06.5]} 35. Nxb7 {[%clk 0:00:03.9]}
35... Bxb7 {[%clk 0:00:07.4]} 36. Bxb7+ {[%clk 0:00:04]} 36... Kxb7 {[%clk
0:00:08.3]} 37. f5 {[%clk 0:00:04.2]} 37... Kc6 {[%clk 0:00:07.9]} 38. f6 {[%clk
0:00:04.2]} 38... Kd5 {[%clk 0:00:07.7]} 39. f7 {[%clk 0:00:04.4]} 39... Rf8
{[%clk 0:00:08.2]} 40. Rf5+ {[%clk 0:00:03.9]} 40... Ke4 {[%clk 0:00:05.9]} 41.
Rxb5 {[%clk 0:00:01.9]} 41... Rxf7 {[%clk 0:00:04.6]} 42. Rb4+ {[%clk 0:00:02]}
42... Kxe3 {[%clk 0:00:04.7]} 0-1

[Event "*** Titled Tuesday Blitz"]
[Site "Chess.com"]
[Date "2020.11.03"]
[Round "1"]
[White "shnitez"]
[Black "paulrusan"]
[Result "1/2-1/2"]
[WhiteElo "2531"]
[BlackElo "2175"]
[TimeControl "180+1"]
[EndTime "10:07:46 PST"]
[Termination "Game drawn - insufficient material"]

1. e4 {[%clk 0:02:59.4]} 1... g6 {[%clk 0:02:59.9]} 2. h4 {[%clk 0:02:58.7]}
2... h5 {[%clk 0:02:59.3]} 3. Bc4 {[%clk 0:02:57]} 3... d6 {[%clk 0:02:56.7]} 4.
Nc3 {[%clk 0:02:55.8]} 4... Bg7 {[%clk 0:02:56.5]} 5. Nh3 {[%clk 0:02:53.9]}
5... Bxh3 {[%clk 0:02:55.5]} 6. Rxh3 {[%clk 0:02:53.6]} 6... Nf6 {[%clk
0:02:56.1]} 7. d3 {[%clk 0:02:51.6]} 7... c5 {[%clk 0:02:53.9]} 8. Bg5 {[%clk
0:02:48.3]} 8... Nc6 {[%clk 0:02:53.6]} 9. a3 {[%clk 0:02:47.1]} 9... O-O {[%clk
0:02:52.8]} 10. Bxf6 {[%clk 0:02:42.8]} 10... Bxf6 {[%clk 0:02:50.4]} 11. g4
{[%clk 0:02:43.3]} 11... hxg4 {[%clk 0:02:50.1]} 12. Qxg4 {[%clk 0:02:42.6]}
12... Ne5 {[%clk 0:02:49.8]} 13. Qg2 {[%clk 0:02:39.1]} 13... Nxc4 {[%clk
0:02:40.8]} 14. dxc4 {[%clk 0:02:40]} 14... Kg7 {[%clk 0:02:31.4]} 15. h5 {[%clk
0:02:37.6]} 15... Rh8 {[%clk 0:02:31.5]} 16. hxg6 {[%clk 0:02:37.6]} 16... Rxh3
{[%clk 0:02:20.8]} 17. gxf7+ {[%clk 0:02:36.3]} 17... Kxf7 {[%clk 0:02:20.6]}
18. Qxh3 {[%clk 0:02:36.4]} 18... Qh8 {[%clk 0:02:18.8]} 19. Qf3 {[%clk
0:02:17.4]} 19... Rg8 {[%clk 0:02:04]} 20. O-O-O {[%clk 0:02:07]} 20... Ke8
{[%clk 0:02:03.9]} 21. Na4 {[%clk 0:01:48.5]} 21... Be5 {[%clk 0:01:53.5]} 22.
Qb3 {[%clk 0:01:37]} 22... b6 {[%clk 0:01:46.4]} 23. Qb5+ {[%clk 0:01:36.2]}
23... Kf7 {[%clk 0:01:44.5]} 24. Qd7 {[%clk 0:01:35.1]} 24... Rg2 {[%clk
0:01:33.9]} 25. Qxa7 {[%clk 0:01:22.3]} 25... Rxf2 {[%clk 0:01:14]} 26. Qxb6
{[%clk 0:01:20.4]} 26... Qh4 {[%clk 0:01:01.9]} 27. Qb7 {[%clk 0:01:14.5]} 27...
Qf4+ {[%clk 0:00:46.7]} 28. Kb1 {[%clk 0:01:13.6]} 28... Rf1 {[%clk 0:00:46.8]}
29. Qd5+ {[%clk 0:01:07]} 29... e6 {[%clk 0:00:46.6]} 30. Qd3 {[%clk 0:00:56]}
30... Rxd1+ {[%clk 0:00:44.8]} 31. Qxd1 {[%clk 0:00:56.9]} 31... Qxe4 {[%clk
0:00:45.1]} 32. Nb6 {[%clk 0:00:42.8]} 32... Ke7 {[%clk 0:00:39.7]} 33. a4
{[%clk 0:00:39.9]} 33... Kd8 {[%clk 0:00:38.5]} 34. a5 {[%clk 0:00:38.9]} 34...
Kc7 {[%clk 0:00:38.7]} 35. b3 {[%clk 0:00:33.3]} 35... Kc6 {[%clk 0:00:37]} 36.
Na4 {[%clk 0:00:26.9]} 36... Qd4 {[%clk 0:00:33.8]} 37. Qxd4 {[%clk 0:00:26]}
37... Bxd4 {[%clk 0:00:33.8]} 38. c3 {[%clk 0:00:24.7]} 38... Bf6 {[%clk
0:00:32.1]} 39. Kc2 {[%clk 0:00:23.6]} 39... d5 {[%clk 0:00:32.3]} 40. Kd3
{[%clk 0:00:20.4]} 40... Bd8 {[%clk 0:00:31.5]} 41. cxd5+ {[%clk 0:00:12.4]}
41... exd5 {[%clk 0:00:29.8]} 42. b4 {[%clk 0:00:12.6]} 42... c4+ {[%clk
0:00:28.8]} 43. Kd4 {[%clk 0:00:10]} 43... Bf6+ {[%clk 0:00:28.2]} 44. Ke3
{[%clk 0:00:10.4]} 44... Kb5 {[%clk 0:00:26]} 45. a6 {[%clk 0:00:09]} 45... Kc6
{[%clk 0:00:17.5]} 46. Kf4 {[%clk 0:00:06.3]} 46... d4 {[%clk 0:00:16]} 47. cxd4
{[%clk 0:00:05.7]} 47... Bxd4 {[%clk 0:00:16.4]} 48. Ke4 {[%clk 0:00:05.9]}
48... Ba7 {[%clk 0:00:14.8]} 49. Kf3 {[%clk 0:00:05.4]} 49... Kb5 {[%clk
0:00:15]} 50. Nb2 {[%clk 0:00:04.9]} 50... Kxb4 {[%clk 0:00:14.9]} 51. Nxc4
{[%clk 0:00:04.8]} 51... Kxc4 {[%clk 0:00:15.2]} 52. Ke4 {[%clk 0:00:05]} 52...
Kb5 {[%clk 0:00:15.4]} 53. Kf3 {[%clk 0:00:05.9]} 53... Kxa6 {[%clk 0:00:15.6]}
1/2-1/2

[Event "*** Titled Tuesday Blitz"]
[Site "Chess.com"]
[Date "2020.11.03"]
[Round "1"]
[White "Sanyura"]
[Black "PetrolulSah"]
[Result "0-1"]
[WhiteElo "2515"]
[BlackElo "2173"]
[TimeControl "180+1"]
[EndTime "10:07:47 PST"]
[Termination "PetrolulSah won by checkmate"]

1. e4 {[%clk 0:03:00.9]} 1... e5 {[%clk 0:02:56]} 2. Nf3 {[%clk 0:03:00.9]} 2...
Nf6 {[%clk 0:02:55.7]} 3. Nxe5 {[%clk 0:02:59.4]} 3... d6 {[%clk 0:02:55.6]} 4.
Nf3 {[%clk 0:03:00]} 4... Nxe4 {[%clk 0:02:53.6]} 5. Nc3 {[%clk 0:03:00.6]} 5...
Nf6 {[%clk 0:02:52.8]} 6. d4 {[%clk 0:02:57.5]} 6... d5 {[%clk 0:02:52.6]} 7.
Bd3 {[%clk 0:02:54.3]} 7... Be7 {[%clk 0:02:52.4]} 8. O-O {[%clk 0:02:54.4]}
8... Nc6 {[%clk 0:02:52.6]} 9. h3 {[%clk 0:02:48.2]} 9... O-O {[%clk 0:02:52.4]}
10. Ne2 {[%clk 0:02:48.7]} 10... Nb4 {[%clk 0:02:50.2]} 11. Ng3 {[%clk
0:02:48.5]} 11... Nxd3 {[%clk 0:02:49.7]} 12. Qxd3 {[%clk 0:02:49.4]} 12... Re8
{[%clk 0:02:48.7]} 13. Re1 {[%clk 0:02:46.7]} 13... c6 {[%clk 0:02:45.1]} 14.
Nf5 {[%clk 0:02:41.4]} 14... Bb4 {[%clk 0:02:42.4]} 15. Rxe8+ {[%clk 0:02:39.8]}
15... Qxe8 {[%clk 0:02:42.7]} 16. Bg5 {[%clk 0:02:40.3]} 16... Bxf5 {[%clk
0:02:39.9]} 17. Qxf5 {[%clk 0:02:41.2]} 17... Qe6 {[%clk 0:02:40]} 18. Qxe6
{[%clk 0:02:25.4]} 18... fxe6 {[%clk 0:02:40]} 19. c3 {[%clk 0:02:18]} 19... Bd6
{[%clk 0:02:39.1]} 20. Re1 {[%clk 0:02:08]} 20... Re8 {[%clk 0:02:36.5]} 21. Bc1
{[%clk 0:02:00.8]} 21... Nd7 {[%clk 0:02:30.9]} 22. Kf1 {[%clk 0:02:00.5]} 22...
h6 {[%clk 0:02:26.1]} 23. g4 {[%clk 0:01:49.7]} 23... Kf7 {[%clk 0:02:24.9]} 24.
g5 {[%clk 0:01:48]} 24... h5 {[%clk 0:02:20.4]} 25. Kg2 {[%clk 0:01:39.4]} 25...
g6 {[%clk 0:02:19.9]} 26. Re3 {[%clk 0:01:33]} 26... e5 {[%clk 0:02:19.8]} 27.
dxe5 {[%clk 0:01:33.3]} 27... Nxe5 {[%clk 0:02:17.1]} 28. Nxe5+ {[%clk
0:01:33.5]} 28... Rxe5 {[%clk 0:02:15.4]} 29. Rf3+ {[%clk 0:01:34]} 29... Rf5
{[%clk 0:02:09.1]} 30. Rxf5+ {[%clk 0:01:30.2]} 30... gxf5 {[%clk 0:02:09.2]}
31. Kf3 {[%clk 0:01:28.9]} 31... Kg6 {[%clk 0:02:04.1]} 32. h4 {[%clk 0:01:26]}
32... Be5 {[%clk 0:02:01]} 33. Bf4 {[%clk 0:01:25.6]} 33... Bg7 {[%clk 0:01:59]}
34. Be3 {[%clk 0:01:23.3]} 34... a6 {[%clk 0:01:54.6]} 35. Bd4 {[%clk
0:01:21.9]} 35... Bf8 {[%clk 0:01:47.9]} 36. Kf4 {[%clk 0:01:21.5]} 36... Bd6+
{[%clk 0:01:46.2]} 37. Be5 {[%clk 0:01:21.8]} 37... Bc5 {[%clk 0:01:46.6]} 38.
Kf3 {[%clk 0:01:11.3]} 38... Kf7 {[%clk 0:01:46]} 39. Bf6 {[%clk 0:00:54.6]}
39... Bd6 {[%clk 0:01:43.9]} 40. Bd4 {[%clk 0:00:47.1]} 40... Kg6 {[%clk
0:01:42.6]} 41. Be3 {[%clk 0:00:46.8]} 41... Bc7 {[%clk 0:01:38.4]} 42. Bf4
{[%clk 0:00:46.4]} 42... Bb6 {[%clk 0:01:38.5]} 43. Bd6 {[%clk 0:00:43.2]} 43...
Kf7 {[%clk 0:01:36.7]} 44. Be5 {[%clk 0:00:28.7]} 44... Kg6 {[%clk 0:01:34.2]}
45. Bd6 {[%clk 0:00:16]} 45... Kf7 {[%clk 0:01:32.1]} 46. Kf4 {[%clk 0:00:16.4]}
46... Bxf2 {[%clk 0:01:30]} 47. Kxf5 {[%clk 0:00:15.8]} 47... Bxh4 {[%clk
0:01:29.8]} 48. g6+ {[%clk 0:00:16.3]} 48... Kg8 {[%clk 0:01:29.6]} 49. Ke6
{[%clk 0:00:14.2]} 49... Bf2 {[%clk 0:01:24.6]} 50. Kd7 {[%clk 0:00:11.1]} 50...
h4 {[%clk 0:01:19.9]} 51. Be7 {[%clk 0:00:11.1]} 51... Bg3 {[%clk 0:01:16.3]}
52. Bc5 {[%clk 0:00:08]} 52... h3 {[%clk 0:01:14.4]} 53. Bg1 {[%clk 0:00:08]}
53... h2 {[%clk 0:01:14.3]} 54. Bxh2 {[%clk 0:00:08]} 54... Bxh2 {[%clk
0:01:14.5]} 55. Kc8 {[%clk 0:00:08.9]} 55... b6 {[%clk 0:01:12.9]} 56. Kb7
{[%clk 0:00:09.1]} 56... c5 {[%clk 0:01:13.1]} 57. Kxa6 {[%clk 0:00:05.6]} 57...
d4 {[%clk 0:01:12.4]} 58. Kxb6 {[%clk 0:00:06.1]} 58... d3 {[%clk 0:01:12]} 59.
a4 {[%clk 0:00:06.6]} 59... d2 {[%clk 0:01:10.7]} 60. a5 {[%clk 0:00:07.1]}
60... d1=Q {[%clk 0:01:10.7]} 61. a6 {[%clk 0:00:07.4]} 61... Qb3+ {[%clk
0:01:10.4]} 62. Ka7 {[%clk 0:00:07.9]} 62... c4 {[%clk 0:01:08.5]} 63. g7 {[%clk
0:00:07.3]} 63... Bc7 {[%clk 0:01:05.1]} 64. Ka8 {[%clk 0:00:07.1]} 64... Qb8#
{[%clk 0:01:04.4]} 0-1